fUST/lending_fUST_20250505
["ID","MTS","AMOUNT","RATE_DAILY","PERIOD"]
[359923201,1746426647064,-879.3,0.0004,14]
[359923202,1746426647074,-400.0,0.0004,2]
[359923203,1746426647084,-400.0,0.0004,14]
[359923204,1746426647094,-752.89,0.0004,14]
[359923205,1746426647103,-588.08,0.0004,14]
[359923206,1746426647113,-400.0,0.0004,14]
[359923207,1746426647123,-400.0,0.0004,14]
[359923208,1746426647133,-400.0,0.0004,14]
[359923209,1746426647142,-400.0,0.0004,14]
[359923210,1746426647152,-629.79,0.00040186,120]
[359923211,1746426647162,-488.49,0.00040273,14]
[359923212,1746426647172,-372.21,0.00040273,14]
[359923213,1746426647182,-600.69,0.00040273,14]
[359923214,1746426647191,-879.3,0.00040273,14]
[359923215,1746426647200,-400.0,0.00040273,2]
[359923216,1746426647209,-400.0,0.00040273,14]
[359923217,1746426647219,-752.89,0.00040273,14]
[359923218,1746426647229,-588.08,0.00040273,14]
[359923219,1746426647239,-400.0,0.00040273,14]
[359923220,1746426647249,-295.41853879,0.00040273,14]
[359923221,1746426647259,-400.0,0.00040273,14]
[359923222,1746426647268,-161.43,0.00040273,14]
[359923223,1746426647278,-2119.7,0.00040274,2]
[359923224,1746426647288,-629.79,0.00040386,120]
[359923225,1746426647297,-160.0,0.000404,62]
[359923226,1746426647307,-2000.0,0.000404,27]
[359923227,1746426647316,-257.99815393,0.000404,3]
[359923228,1746426647325,-1805.98707751,0.0004041,3]
[359923229,1746426647334,-192529.34712383,0.0004042,30]
[359923230,1746426647492,-400.0,0.00036712,14]
[359923231,1746426647501,-402.02,0.0004,14]
[359923232,1746426647511,-153.5847049,0.0004042,30]
[359923233,1746426647582,-331.0,0.00035616,14]
[359923234,1746426647601,-69.0,0.00035616,14]
[359923235,1746426647610,-400.0,0.0003589,14]
[359923236,1746426647620,-400.0,0.00036986,14]
[359923237,1746426647629,-144.9836,0.0003726,14]
[359923238,1746426647707,-400.0,0.00035616,14]
[359923239,1746426647716,-400.0,0.00036164,14]
[359923240,1746426647726,-400.0,0.00036438,14]
[359923241,1746426647735,-400.0,0.00036712,14]
[359923242,1746426647745,-400.0,0.00036986,14]
[359923243,1746426647755,-255.0164,0.0003726,14]
[359923244,1746426647764,-240.0,0.0003726,14]
[359923245,1746426647774,-400.0,0.00037534,14]
[359923246,1746426647783,-59.77511319,0.00037808,14]
[359923247,1746426647795,-340.22488681,0.00037808,14]
[359923248,1746426647804,-210.5128451,0.00038082,14]
[359923249,1746426647815,-189.4871549,0.00038082,14]
[359923250,1746426647825,-355.75993436,0.00038356,14]
[359923251,1746426647837,-44.24006564,0.00038356,14]
[359923252,1746426647846,-400.0,0.0003863,14]
[359923253,1746426647855,-400.0,0.00038904,14]
[359923254,1746426647865,-400.0,0.00039178,14]
[359923255,1746426647876,-400.0,0.00039452,14]
[359923256,1746426647886,-400.0,0.00039726,14]
[359923257,1746426647896,-400.0,0.0004,14]
[359923258,1746426647906,-402.02,0.00040273,14]
[359923259,1746426647917,-288.17242162,0.00040273,14]
[359923260,1746426647950,-400.0,0.00035616,14]
[359923261,1746426647960,-219.87,0.0003589,14]
[359923262,1746426647970,-53362.23812747,0.00037,2]
[359923263,1746426647982,-82072.76187253,0.00037,2]
[359923264,1746426647992,-111.82757838,0.00040273,14]
[359923265,1746426648002,-74345.44400972,0.0004042,30]
[359923728,1746426745659,500.0,0.00026,30]
[359923729,1746426869547,1400.0,0.0003,30]
[359923732,1746426955154,700.0,0.00025205,2]
[359923735,1746427209148,-209.157227,0.00025205,2]
[359923738,1746427375965,-1299.72374655,0.000251,2]
[359923739,1746427382823,-400.0,0.000251,2]
[359923740,1746427404206,-166.0,0.000251,2]
[359923741,1746427414266,-128.27625345,0.000251,2]
[359923742,1746427414290,-37.72374655,0.00025205,2]
[359923743,1746427415006,-267.53463743,0.00025205,2]
[359923744,1746427424042,-743.93973117,0.00025205,2]
[359923745,1746427437149,-206.36682733,0.00025205,2]
[359923746,1746427442694,-175.04475709,0.00025205,2]
[359923747,1746427445297,-164.91728121,0.00025205,2]
[359923748,1746427448041,-182.1060237,0.00025205,2]
[359923749,1746427458073,-210.27811691,0.00025205,2]
[359923750,1746427462761,-151.0,0.00025205,2]
[359923751,1746427465955,-198.8813985,0.00025205,2]
[359923752,1746427469145,-153.31977512,0.00025205,2]
[359923753,1746427471798,-534.3559804,0.00025205,2]
[359923754,1746427475096,-709.43580172,0.00025205,2]
[359923755,1746427479568,-172.89296064,0.00025205,2]
[359923756,1746427483876,-529.44408862,0.00025205,2]
[359923757,1746427488388,-161.19478468,0.00025205,2]
[359923758,1746427492967,-167.05029507,0.00025205,2]
[359923759,1746427497583,-263.96280926,0.00025205,2]
[359923760,1746427501434,-175.6895645,0.00025205,2]
[359923761,1746427503895,-161.16470176,0.00025205,2]
[359923762,1746427509266,-259.40174932,0.00025205,2]
[359923763,1746427514437,-156.1344534,0.00021,7]
[359923764,1746427514914,-75781.0,0.00021,7]
[359923765,1746427517689,-201.39105745,0.00021,7]
[359923766,1746427522064,-300.0,0.00021,7]
[359923767,1746427525171,-1000.0,0.00021,7]
[359923768,1746427529558,-2521.58080575,0.00021,7]
[359923769,1746427532132,-270.0,0.00021,7]
[359923770,1746427533750,-537.73383512,0.00021,7]
[359923771,1746427537693,-292.43767051,0.00021,7]
[359923772,1746427542305,-166.27529339,0.00021,7]
[359923773,1746427545011,-180.52612848,0.00021,7]
[359923774,1746427548335,-158.88601231,0.00021,7]
[359923775,1746427551579,-171.08296106,0.00021,7]
[359923776,1746427557646,-377.51573122,0.00021,7]
[359923777,1746427565322,-284.20570537,0.00020999,2]
[359923778,1746427568028,-15.79429463,0.00020999,2]
[359923779,1746427568051,-455.5162204,0.00021,7]
[359923780,1746427572992,-265.00542295,0.00021,7]
[359923781,1746427576587,-200.0,0.00021,7]
[359923782,1746427580448,-267.43707725,0.00021,7]
[359923783,1746427584885,-216.01936581,0.00021,7]
[359923784,1746427590000,-168.91208258,0.00021,7]
[359923785,1746427593862,-326.87590918,0.00020999,2]
[359923786,1746427593884,-41.27720853,0.00021,7]
[359923787,1746427601224,-233.44942206,0.00020999,2]
[359923791,1746427609060,-151.0,0.00020999,2]
[359923792,1746427616852,-115.55057794,0.00020999,2]
[359923793,1746427616890,-153.56052766,0.00020999,2]
[359923794,1746427621038,-201.01492869,0.00020999,2]
[359923795,1746427624987,-151.0,0.00020998,2]
[359923796,1746427633451,-149.0,0.00020998,2]
[359923797,1746427633489,-14.53564925,0.00020999,2]
[359923798,1746427639984,-130.8888944,0.00020999,2]
[359923799,1746427640026,-21.1111056,0.00020999,2]
[359923800,1746427642103,-478.8888944,0.00020999,2]
[359923801,1746427642136,-500.0,0.00020999,2]
[359923802,1746427642158,-500.0,0.00020999,2]
[359923803,1746427642191,-500.0,0.00020999,2]
[359923804,1746427642221,-500.0,0.00020999,2]
[359923805,1746427642252,-500.0,0.00020999,2]
[359923806,1746427642283,-500.0,0.00020999,2]
[359923807,1746427642314,-500.0,0.00020999,2]
[359923808,1746427642345,-500.0,0.00020999,2]
[359923809,1746427642375,-500.0,0.00020999,2]
[359923810,1746427642407,-165.00712597,0.00020999,2]
[359923811,1746427642444,-334.99287403,0.00020999,2]
[359923812,1746427642475,-500.0,0.00020999,2]
[359923813,1746427642507,-500.0,0.00020999,2]
[359923814,1746427642548,-500.0,0.00020999,2]
[359923815,1746427642595,-494.46556807,0.00020999,2]
[359923816,1746427642621,-2400.79071952,0.00021,7]
[359923817,1746427643698,-301.45569011,0.00021,7]
[359923818,1746427646102,-14826.47167581,0.00021,7]
[359923819,1746427648097,-1167.59917804,0.00021,7]
[359923820,1746427650433,-225.51573122,0.00021,7]
[359923823,1746427690230,-155.0,0.00020999,2]
[359923824,1746427690256,-327.70417143,0.00020999,2]
[359923825,1746427690279,-210.82500453,0.00020999,2]
[359923826,1746427690304,-306.47082404,0.00020999,2]
[359923827,1746427698736,-233.3027997,0.00020999,2]
[359923828,1746427698762,-500.0,0.00020999,2]
[359923829,1746427698797,-266.6972003,0.00020999,2]
[359923830,1746427702003,-233.3027997,0.00020999,2]
[359923831,1746427702037,-500.0,0.00020999,2]
[359923832,1746427702070,-266.6972003,0.00020999,2]
[359923833,1746427708089,-146.821651,0.00020999,2]
[359923834,1746427708117,-853.178349,0.00021,7]
[359923835,1746427711554,-1000.0,0.00021,7]
[359923839,1746427742176,-175.65371778,0.00020999,2]
[359923840,1746427742211,-500.0,0.00020999,2]
[359923841,1746427742243,-324.34628222,0.00020999,2]
[359923842,1746427743783,-268.0,0.00020999,2]
[359923843,1746427743818,-153.18469829,0.00020999,2]
[359923844,1746427743841,-578.81530171,0.00021,7]
[359923845,1746427745120,-45025.92359578,0.00021,7]
[359923846,1746427745142,-284.98588192,0.00022614,2]
[359923847,1746427745165,-20256.5683083,0.00025205,2]
[359923848,1746427746097,-14562.68828454,0.00025205,2]
[359923849,1746427746121,-202.381844,0.000257,13]
[359923850,1746427746144,-202.38184396,0.000257,13]
[359923851,1746427746169,-202.38184396,0.000257,13]
[359923852,1746427746191,-202.38184396,0.000257,13]
[359923853,1746427746214,-202.38184396,0.000257,13]
[359923854,1746427746236,-202.38184396,0.000259,14]
[359923855,1746427746260,-202.38184396,0.00026733,15]
[359923856,1746427746279,-276.0,0.00027397,2]
[359923857,1746427746298,-209.157227,0.00027397,2]
[359923858,1746427746320,-202.38184396,0.00027567,17]
[359923859,1746427746343,-202.38184396,0.000284,19]
[359923860,1746427746365,-202.38184396,0.00029233,20]
[359923861,1746427746384,-593.1516157,0.00029623,2]
[359923862,1746427746405,-202.38184396,0.00030067,22]
[359923863,1746427746427,-202.38184396,0.000309,23]
[359923864,1746427746446,-197.68238368,0.00031144,2]
[359923865,1746427746466,-228.81313643,0.00031144,2]
[359923866,1746427746486,-3697.16462537,0.00031145,2]
[359923867,1746427748115,-11631.41475003,0.00031145,2]
[359923868,1746427748139,-202.38184396,0.00031733,25]
[359923869,1746427748165,-202.38184396,0.00032567,27]
[359923870,1746427748185,-209.157227,0.00033165,2]
[359923871,1746427748208,-202.38184396,0.000334,28]
[359923872,1746427748229,-170.846285,0.000335,2]
[359923873,1746427748251,-696.2167096,0.00034195,2]
[359923874,1746427748274,-202.38184396,0.00034233,30]
[359923875,1746427748294,-500.0,0.00034795,2]
[359923876,1746427748315,-500.0,0.00034835,5]
[359923877,1746427748336,-500.0,0.00034835,5]
[359923878,1746427798617,980.5192488,0.00023105,2]
[359923879,1746427798788,169.98161739,0.00028105,2]
[359923880,1746427798808,810.53763141,0.00028105,2]
[359923881,1746427799113,980.5192488,0.00033105,2]
[359923882,1746427803256,787.1437356,0.00018,2]
[359923926,1746427832712,-753.0845661,0.00035148,2]
[359923928,1746427832721,-1600.0,0.00035502,3]
[359923930,1746427832733,-18930.50323995,0.00035503,2]
[359923931,1746427832742,-181.97636197,0.00035506,2]
[359923933,1746427832751,-4822.50338523,0.00035603,2]
[359923935,1746427832761,-6344.50913793,0.00035606,3]
[359923937,1746427832771,-312.73,0.00035606,3]
[359923938,1746427832780,-156.36,0.00035606,3]
[359923939,1746427832789,-469.11,0.00035606,3]
[359923940,1746427832800,-187.403,0.00035615,42]
[359923941,1746427832811,-160.1691955,0.00035615,7]
[359923942,1746427832821,-156.52848524,0.00035615,7]
[359923943,1746427832831,-505.7016536,0.00035616,14]
[359923944,1746427832840,-213.46811399,0.00035616,14]
[359923945,1746427832850,-484.55472806,0.00035616,14]
[359923946,1746427832859,-400.0,0.00035616,14]
[359923947,1746427832870,-300.0,0.00035616,14]
[359923948,1746427832879,-400.0,0.00035616,14]
[359923949,1746427832888,-400.0,0.00035616,14]
[359923950,1746427832897,-400.0,0.00035616,14]
[359923951,1746427832906,-400.0,0.00035616,14]
[359923952,1746427832915,-400.0,0.00035616,14]
[359923953,1746427832924,-400.0,0.00035616,14]
[359923954,1746427832933,-443.13,0.00035616,14]
[359923955,1746427832942,-400.0,0.00035616,14]
[359923956,1746427832952,-400.0,0.00035616,14]
[359923957,1746427832961,-400.0,0.00035616,14]
[359923958,1746427832970,-287.13693183,0.00035616,14]
[359923959,1746427832979,-401.89519383,0.00035616,14]
[359923960,1746427832988,-400.0,0.00035616,14]
[359923961,1746427832997,-400.0,0.00035616,14]
[359923962,1746427833006,-400.0,0.00035616,14]
[359923963,1746427833015,-400.0,0.00035616,14]
[359923964,1746427833025,-400.0,0.00035616,14]
[359923965,1746427833034,-400.0,0.00035616,14]
[359923966,1746427833043,-400.0,0.00035616,14]
[359923967,1746427833052,-400.0,0.00035616,14]
[359923968,1746427833061,-400.0,0.00035616,14]
[359923969,1746427833071,-400.0,0.00035616,14]
[359923970,1746427833080,-500.0,0.00035616,14]
[359923971,1746427833090,-400.0,0.00035616,14]
[359923972,1746427833099,-400.0,0.00035616,14]
[359923973,1746427833108,-400.0,0.00035616,14]
[359923974,1746427833118,-429.93641976,0.00035616,14]
[359923975,1746427833127,-400.0,0.00035616,14]
[359923976,1746427833136,-400.0,0.00035616,14]
[359923977,1746427833146,-400.0,0.00035616,14]
[359923978,1746427833155,-412.2762129,0.00035616,14]
[359923979,1746427833164,-400.77242947,0.00035616,14]
[359923980,1746427833174,-400.0,0.00035616,14]
[359923981,1746427833183,-400.0,0.00035616,14]
[359923982,1746427833192,-400.0,0.00035616,14]
[359923983,1746427833206,-402.26330124,0.00035616,14]
[359923984,1746427833215,-400.0,0.00035616,14]
[359923985,1746427833225,-400.0,0.00035616,14]
[359923986,1746427833238,-400.0,0.00035616,14]
[359923987,1746427833248,-400.0,0.00035616,14]
[359923988,1746427833257,-400.0,0.00035616,14]
[359923989,1746427833267,-411.60020733,0.00035616,14]
[359923990,1746427833278,-400.0,0.00035616,14]
[359923991,1746427833287,-400.0,0.00035616,14]
[359923992,1746427833297,-400.0,0.00035616,14]
[359923993,1746427833307,-400.0,0.00035616,14]
[359923994,1746427833318,-484.84019884,0.00035616,14]
[359923995,1746427833327,-400.0,0.00035616,14]
[359923996,1746427833337,-400.0,0.00035616,14]
[359923997,1746427833349,-400.0,0.00035616,14]
[359923998,1746427833359,-400.0,0.00035616,14]
[359923999,1746427833368,-400.94777268,0.00035616,14]
[359924000,1746427833377,-400.0,0.00035616,14]
[359924001,1746427833387,-423.98413797,0.00035616,14]
[359924002,1746427833397,-413.66746007,0.00035616,14]
[359924003,1746427833407,-405.25821699,0.00035616,14]
[359924004,1746427833417,-421.53029349,0.00035616,14]
[359924005,1746427833427,-400.0,0.00035616,14]
[359924006,1746427833436,-400.0,0.00035616,14]
[359924007,1746427833445,-408.57593346,0.00035616,14]
[359924008,1746427833454,-400.0,0.00035616,14]
[359924009,1746427833464,-400.0,0.00035616,14]
[359924010,1746427833474,-400.0,0.00035616,14]
[359924011,1746427833486,-400.0,0.00035616,14]
[359924012,1746427833497,-400.0,0.00035616,14]
[359924013,1746427833506,-400.0,0.00035616,14]
[359924014,1746427833516,-486.42,0.00035616,14]
[359924015,1746427833525,-400.0,0.00035616,14]
[359924016,1746427833535,-400.0,0.00035616,14]
[359924017,1746427833544,-400.0,0.00035616,14]
[359924018,1746427833554,-400.0,0.00035616,14]
[359924019,1746427833564,-400.0,0.00035616,14]
[359924020,1746427833574,-400.0,0.00035616,14]
[359924021,1746427833583,-400.0,0.00035616,14]
[359924022,1746427833593,-503.01911372,0.00035616,14]
[359924023,1746427833602,-503.15416231,0.00035616,14]
[359924024,1746427833611,-418.49369878,0.00035616,14]
[359924025,1746427833621,-405.76344296,0.00035616,14]
[359924026,1746427833630,-400.0,0.00035616,14]
[359924027,1746427833640,-400.0,0.00035616,14]
[359924028,1746427833649,-400.0,0.00035616,14]
[359924029,1746427833659,-400.0,0.00035616,14]
[359924030,1746427833668,-400.0,0.00035616,14]
[359924031,1746427833678,-211.57182776,0.00035616,14]
[359924032,1746427833687,-400.0,0.00035616,14]
[359924033,1746427833698,-400.0,0.00035616,14]
[359924034,1746427833709,-400.0,0.00035616,2]
[359924035,1746427833719,-400.0,0.00035616,14]
[359924036,1746427833729,-400.0,0.00035616,14]
[359924037,1746427833738,-500.0,0.00035616,14]
[359924038,1746427833748,-400.0,0.00035616,14]
[359924039,1746427833758,-400.0,0.00035616,14]
[359924040,1746427833768,-431.19,0.00035616,14]
[359924041,1746427833778,-400.0,0.00035616,14]
[359924042,1746427833787,-400.0,0.00035616,14]
[359924043,1746427833797,-400.0,0.00035616,14]
[359924044,1746427833806,-400.0,0.00035616,14]
[359924045,1746427833815,-402.08542561,0.00035616,14]
[359924046,1746427833825,-400.0,0.00035616,14]
[359924047,1746427833835,-400.0,0.00035616,14]
[359924048,1746427833846,-400.0,0.00035616,14]
[359924049,1746427833855,-500.0,0.00035616,14]
[359924050,1746427833864,-500.0,0.00035616,14]
[359924051,1746427833874,-500.0,0.00035616,14]
[359924052,1746427833883,-400.0,0.00035616,14]
[359924053,1746427833893,-363.93511549,0.00035616,14]
[359924054,1746427833903,-445.08,0.00035616,14]
[359924055,1746427833913,-400.0,0.00035616,14]
[359924056,1746427833922,-400.0,0.00035616,14]
[359924057,1746427833932,-507.17935352,0.00035616,14]
[359924058,1746427833942,-400.0,0.00035616,14]
[359924059,1746427833951,-400.0,0.00035616,14]
[359924060,1746427833961,-400.0,0.00035616,14]
[359924061,1746427833971,-206.65151521,0.00035616,14]
[359924062,1746427833980,-400.0,0.00035616,14]
[359924063,1746427833990,-505.04982139,0.00035616,14]
[359924064,1746427834000,-400.0,0.00035616,14]
[359924065,1746427834010,-447.75823373,0.00035616,14]
[359924066,1746427834019,-400.0,0.00035616,14]
[359924067,1746427834028,-400.0,0.00035616,14]
[359924068,1746427834038,-400.0,0.00035616,14]
[359924069,1746427834047,-400.0,0.00035616,14]
[359924070,1746427834057,-400.0,0.00035616,14]
[359924071,1746427834067,-400.0,0.00035616,14]
[359924072,1746427834076,-403.94680575,0.00035616,14]
[359924073,1746427834085,-400.0,0.00035616,14]
[359924074,1746427834096,-400.0,0.00035616,14]
[359924075,1746427834105,-400.0,0.00035616,14]
[359924076,1746427834114,-400.0,0.00035616,14]
[359924077,1746427834124,-401.33823516,0.00035616,14]
[359924078,1746427834135,-400.0,0.00035616,14]
[359924079,1746427834144,-400.0,0.00035616,14]
[359924080,1746427834154,-400.0,0.00035616,14]
[359924081,1746427834164,-400.0,0.00035616,14]
[359924082,1746427834173,-400.0,0.00035616,14]
[359924083,1746427834183,-400.0,0.00035616,14]
[359924084,1746427834193,-500.0,0.00035616,14]
[359924085,1746427834202,-500.0,0.00035616,14]
[359924086,1746427834211,-630.62,0.00035616,14]
[359924087,1746427834221,-400.0,0.00035616,14]
[359924088,1746427834231,-400.0,0.00035616,14]
[359924089,1746427834241,-400.0,0.00035616,14]
[359924090,1746427834250,-400.0,0.00035616,14]
[359924091,1746427834260,-400.0,0.00035616,14]
[359924092,1746427834270,-400.0,0.00035616,14]
[359924093,1746427834280,-400.0,0.00035616,14]
[359924094,1746427834290,-413.23222846,0.00035616,14]
[359924095,1746427834300,-400.0,0.00035616,14]
[359924096,1746427834310,-400.0,0.00035616,14]
[359924097,1746427834320,-400.0,0.00035616,14]
[359924098,1746427834330,-400.0,0.00035616,14]
[359924099,1746427834340,-400.0,0.00035616,14]
[359924100,1746427834350,-400.0,0.00035616,14]
[359924101,1746427834360,-400.0,0.00035616,14]
[359924102,1746427834370,-400.0,0.00035616,14]
[359924103,1746427834380,-400.0,0.00035616,14]
[359924104,1746427834389,-400.0,0.00035616,14]
[359924105,1746427834400,-407.54055667,0.00035616,14]
[359924106,1746427834410,-400.0,0.00035616,14]
[359924107,1746427834420,-400.0,0.00035616,14]
[359924108,1746427834430,-421.08636075,0.00035616,14]
[359924109,1746427834439,-501.13116007,0.00035616,12]
[359924110,1746427834449,-500.0,0.00035616,14]
[359924119,1746427834459,-400.0,0.00035616,14]
[359924120,1746427834567,-400.0,0.00035616,14]
[359924121,1746427834577,-400.0,0.00035616,14]
[359924122,1746427834587,-400.0,0.00035616,14]
[359924123,1746427834596,-400.0,0.00035616,14]
[359924124,1746427834606,-254.37880479,0.00035616,14]
[359924125,1746427834616,-400.0,0.00035616,14]
[359924126,1746427834626,-400.0,0.00035616,14]
[359924127,1746427834637,-400.0,0.00035616,14]
[359924128,1746427834648,-400.0,0.00035616,14]
[359924129,1746427834657,-400.0,0.00035616,14]
[359924130,1746427834666,-400.0,0.00035616,14]
[359924131,1746427834677,-400.0,0.00035616,14]
[359924132,1746427834687,-400.0,0.00035616,14]
[359924133,1746427834697,-400.0,0.00035616,14]
[359924134,1746427834708,-400.0,0.00035616,14]
[359924135,1746427834719,-400.0,0.00035616,14]
[359924136,1746427834729,-400.0,0.00035616,14]
[359924137,1746427834738,-400.0,0.00035616,14]
[359924138,1746427834747,-400.0,0.00035616,14]
[359924139,1746427834756,-400.0,0.00035616,14]
[359924140,1746427834765,-400.0,0.00035616,14]
[359924141,1746427834774,-400.0,0.00035616,14]
[359924142,1746427834783,-400.0,0.00035616,14]
[359924143,1746427834793,-400.0,0.00035616,14]
[359924144,1746427834802,-400.0,0.00035616,14]
[359924145,1746427834811,-400.0,0.00035616,14]
[359924146,1746427834821,-410.07710813,0.00035616,14]
[359924147,1746427834831,-400.0,0.00035616,14]
[359924148,1746427834841,-500.0,0.00035616,14]
[359924149,1746427834851,-449.11,0.00035616,14]
[359924150,1746427834860,-421.68001948,0.00035616,14]
[359924151,1746427834870,-400.0,0.00035616,14]
[359924152,1746427834879,-400.0,0.00035616,14]
[359924153,1746427834890,-400.0,0.00035616,14]
[359924154,1746427834899,-453.71,0.00035616,14]
[359924155,1746427834910,-400.0,0.00035616,14]
[359924156,1746427834919,-400.0,0.00035616,14]
[359924157,1746427834929,-172.94995933,0.00035616,14]
[359924158,1746427834939,-400.0,0.00035616,14]
[359924159,1746427834948,-400.0,0.00035616,14]
[359924160,1746427834958,-400.0,0.00035616,14]
[359924161,1746427834968,-400.0,0.00035616,14]
[359924162,1746427834978,-400.0,0.00035616,14]
[359924163,1746427834987,-400.0,0.00035616,14]
[359924164,1746427834996,-400.0,0.00035616,14]
[359924165,1746427835006,-400.0,0.00035616,14]
[359924166,1746427835015,-400.0,0.00035616,14]
[359924167,1746427835024,-400.0,0.00035616,14]
[359924168,1746427835033,-400.0,0.00035616,14]
[359924169,1746427835042,-400.0,0.00035616,14]
[359924170,1746427835052,-400.0,0.00035616,14]
[359924171,1746427835061,-400.0,0.00035616,14]
[359924172,1746427835071,-400.0,0.00035616,14]
[359924173,1746427835080,-400.0,0.00035616,14]
[359924174,1746427835089,-400.0,0.00035616,14]
[359924175,1746427835099,-400.0,0.00035616,14]
[359924176,1746427835108,-400.0,0.00035616,14]
[359924177,1746427835118,-400.0,0.00035616,14]
[359924178,1746427835127,-400.0,0.00035616,14]
[359924179,1746427835137,-400.0,0.00035616,14]
[359924180,1746427835147,-400.0,0.00035616,14]
[359924181,1746427835156,-400.0,0.00035616,14]
[359924182,1746427835165,-400.0,0.00035616,14]
[359924183,1746427835174,-400.0,0.00035616,14]
[359924184,1746427835183,-400.0,0.00035616,14]
[359924185,1746427835192,-400.0,0.00035616,14]
[359924186,1746427835202,-400.0,0.00035616,14]
[359924187,1746427835211,-400.0,0.00035616,14]
[359924188,1746427835221,-400.0,0.00035616,14]
[359924189,1746427835230,-400.0,0.00035616,14]
[359924190,1746427835243,-400.0,0.00035616,14]
[359924191,1746427835253,-400.0,0.00035616,14]
[359924192,1746427835263,-400.0,0.00035616,14]
[359924193,1746427835272,-400.0,0.00035616,14]
[359924194,1746427835283,-400.0,0.00035616,14]
[359924195,1746427835293,-169.4720357,0.00035616,14]
[359924196,1746427835304,-400.0,0.00035616,14]
[359924197,1746427835314,-400.0,0.00035616,14]
[359924198,1746427835324,-400.0,0.00035616,14]
[359924199,1746427835335,-400.0,0.00035616,14]
[359924200,1746427835345,-400.0,0.00035616,14]
[359924201,1746427835354,-400.0,0.00035616,14]
[359924202,1746427835365,-400.0,0.00035616,14]
[359924203,1746427835375,-201.82325602,0.00035616,14]
[359924204,1746427835384,-400.0,0.00035616,14]
[359924205,1746427835394,-400.0,0.00035616,14]
[359924206,1746427835404,-400.0,0.00035616,14]
[359924207,1746427835414,-400.0,0.00035616,14]
[359924208,1746427835423,-400.0,0.00035616,14]
[359924209,1746427835433,-400.0,0.00035616,14]
[359924210,1746427835443,-400.0,0.00035616,14]
[359924211,1746427835453,-400.0,0.00035616,14]
[359924212,1746427835463,-400.0,0.00035616,14]
[359924213,1746427835472,-400.0,0.00035616,14]
[359924214,1746427835481,-405.38097653,0.00035616,14]
[359924215,1746427835491,-414.23728558,0.00035616,14]
[359924216,1746427835500,-400.0,0.00035616,14]
[359924217,1746427835510,-184.94848077,0.00035616,14]
[359924218,1746427835520,-400.0,0.00035616,14]
[359924219,1746427835529,-194.6602098,0.00035616,14]
[359924220,1746427835539,-401.52843382,0.00035616,14]
[359924221,1746427835549,-400.0,0.00035616,14]
[359924222,1746427835558,-322.98,0.00035616,14]
[359924223,1746427835568,-400.0,0.00035616,14]
[359924224,1746427835577,-400.0,0.00035616,14]
[359924225,1746427835587,-400.0,0.00035616,14]
[359924226,1746427835598,-400.0,0.00035616,14]
[359924227,1746427835608,-400.0,0.00035616,14]
[359924228,1746427835618,-400.0,0.00035616,14]
[359924229,1746427835627,-400.0,0.00035616,14]
[359924230,1746427835636,-400.0,0.00035616,14]
[359924231,1746427835645,-400.0,0.00035616,14]
[359924232,1746427835655,-400.0,0.00035616,14]